[Event "Titled Tuesday Blitz June 28 Late 2022"]
[White "Martinez, Shawn"]
[Black "Krishnan, Varun"]
[WhiteFideId "2039770"]
[BlackFideId "5054508"]
[WhiteElo "2174"]
[BlackElo "2554"]
[Result "0-1"]
[Round "05"]
[TimeControl "180+1"]
[Date "2022.06.29"]
[WhiteClock "0:00:03"]
[BlackClock "0:00:07"]

1. e4 {[%clk 0:03:00]}  c5 {[%clk 0:02:55]} 2. Nc3 {[%clk 0:02:59]}  a6 {[%clk 0:02:50]} 3. g3 {[%clk 0:02:48]}  b5 {[%clk 0:02:48]} 4. Bg2 {[%clk 0:02:49]}  Bb7 {[%clk 0:02:48]} 5. d3 {[%clk 0:02:48]}  e6 {[%clk 0:02:48]} 6. Nh3 {[%clk 0:02:49]}  d6 {[%clk 0:02:47]} 7. O-O {[%clk 0:02:49]}  Qc7 {[%clk 0:02:46]} 8. f4 {[%clk 0:02:38]}  Nd7 {[%clk 0:02:43]} 9. Nf2 {[%clk 0:02:30]}  Ngf6 {[%clk 0:02:43]} 10. Qe2 {[%clk 0:02:22]}  Be7 {[%clk 0:02:38]} 11. g4 {[%clk 0:02:06]}  O-O {[%clk 0:02:35]} 12. g5 {[%clk 0:02:03]}  Ne8 {[%clk 0:02:30]} 13. Be3 {[%clk 0:02:00]}  d5 {[%clk 0:02:23]} 14. exd5 {[%clk 0:01:51]}  b4 {[%clk 0:02:20]} 15. dxe6 {[%clk 0:01:33]}  fxe6 {[%clk 0:02:03]} 16. Nce4 {[%clk 0:01:19]}  Nd6 {[%clk 0:02:00]} 17. Bh3 {[%clk 0:01:10]}  Nf5 {[%clk 0:01:58]} 18. Ng4 {[%clk 0:00:55]}  c4 {[%clk 0:01:50]} 19. Rae1 {[%clk 0:00:37]}  Nc5 {[%clk 0:01:26]} 20. Nxc5 {[%clk 0:00:25]}  Bxc5 {[%clk 0:01:25]} 21. Bxc5 {[%clk 0:00:25]}  Qxc5+ {[%clk 0:01:26]} 22. Rf2 {[%clk 0:00:25]}  cxd3 {[%clk 0:00:51]} 23. Qxe6+ {[%clk 0:00:20]}  Kh8 {[%clk 0:00:49]} 24. Ne5 {[%clk 0:00:17]}  Nd4 {[%clk 0:00:33]} 25. Nf7+ {[%clk 0:00:14]}  Rxf7 {[%clk 0:00:32]} 26. Qxf7 {[%clk 0:00:14]}  Nf3+ {[%clk 0:00:17]} 27. Kf1 {[%clk 0:00:14]}  Nxe1 {[%clk 0:00:16]} 28. Qxb7 {[%clk 0:00:14]}  Rd8 {[%clk 0:00:14]} 29. cxd3 {[%clk 0:00:09]}  Nxd3 {[%clk 0:00:13]} 30. Re2 {[%clk 0:00:07]}  Qc1+ {[%clk 0:00:12]} 31. Kg2 {[%clk 0:00:05]}  Nxf4+ {[%clk 0:00:12]} 32. Kf3 {[%clk 0:00:05]}  Nxe2 {[%clk 0:00:12]} 33. Kxe2 {[%clk 0:00:05]}  Qd1+ {[%clk 0:00:11]} 34. Kf2 {[%clk 0:00:05]}  Qc2+ {[%clk 0:00:08]} 35. Kg3 {[%clk 0:00:05]}  Qd3+ {[%clk 0:00:07]} 36. Kh4 {[%clk 0:00:05]}  Qd4+ {[%clk 0:00:07]} 37. Bg4 {[%clk 0:00:05]}  Qf2+ {[%clk 0:00:07]} 38. Kh5 {[%clk 0:00:05]}  Qxh2+ {[%clk 0:00:06]} 39. Bh3 {[%clk 0:00:03]}  Qxh3# {[%clk 0:00:07]} 0-1


[Site "https://www.chess.com"]

[Event "Titled Tuesday Blitz June 28 Late 2022"]
[White "Matlakov, Maxim"]
[Black "Yoo, Christopher Woojin"]
[WhiteFideId "4168003"]
[BlackFideId "30909694"]
[WhiteElo "2669"]
[BlackElo "2105"]
[Result "1-0"]
[Round "05"]
[TimeControl "180+1"]
[Date "2022.06.28"]
[WhiteClock "0:00:19"]
[BlackClock "0:00:01"]

1. d4 {[%clk 0:03:00]}  d5 {[%clk 0:02:53]} 2. Nf3 {[%clk 0:03:01]}  Nf6 {[%clk 0:02:53]} 3. c4 {[%clk 0:03:01]}  e6 {[%clk 0:02:54]} 4. g3 {[%clk 0:03:01]}  Be7 {[%clk 0:02:47]} 5. Bg2 {[%clk 0:03:01]}  O-O {[%clk 0:02:48]} 6. b3 {[%clk 0:03:02]}  dxc4 {[%clk 0:02:30]} 7. bxc4 {[%clk 0:03:03]}  c5 {[%clk 0:02:30]} 8. O-O {[%clk 0:03:03]}  cxd4 {[%clk 0:02:30]} 9. Nxd4 {[%clk 0:03:03]}  Qc7 {[%clk 0:02:21]} 10. Nb5 {[%clk 0:02:39]}  Qb6 {[%clk 0:01:41]} 11. Bf4 {[%clk 0:02:27]}  Na6 {[%clk 0:01:34]} 12. N1c3 {[%clk 0:02:25]}  Rd8 {[%clk 0:01:21]} 13. Qc2 {[%clk 0:02:14]}  Qc5 {[%clk 0:00:56]} 14. Qb3 {[%clk 0:01:46]}  Qh5 {[%clk 0:00:51]} 15. Rad1 {[%clk 0:01:16]}  e5 {[%clk 0:00:50]} 16. Rxd8+ {[%clk 0:01:14]}  Bxd8 {[%clk 0:00:51]} 17. Bc1 {[%clk 0:01:08]}  Nc5 {[%clk 0:00:34]} 18. Qa3 {[%clk 0:01:02]}  Bb6 {[%clk 0:00:35]} 19. h4 {[%clk 0:00:46]}  Be6 {[%clk 0:00:28]} 20. Be3 {[%clk 0:00:44]}  Nfd7 {[%clk 0:00:12]} 21. Rd1 {[%clk 0:00:43]}  Bxc4 {[%clk 0:00:09]} 22. Bf3 {[%clk 0:00:38]}  Qg6 {[%clk 0:00:05]} 23. Nd6 {[%clk 0:00:37]}  Ba6 {[%clk 0:00:03]} 24. h5 {[%clk 0:00:38]}  Qe6 {[%clk 0:00:03]} 25. Bd5 {[%clk 0:00:36]}  Qe7 {[%clk 0:00:03]} 26. Nxf7 {[%clk 0:00:36]}  Kf8 {[%clk 0:00:03]} 27. Ng5 {[%clk 0:00:36]}  Nf6 {[%clk 0:00:03]} 28. h6 {[%clk 0:00:33]}  gxh6 {[%clk 0:00:03]} 29. Bxc5 {[%clk 0:00:34]}  Bxc5 {[%clk 0:00:02]} 30. Ne6+ {[%clk 0:00:33]}  Qxe6 {[%clk 0:00:02]} 31. Qxc5+ {[%clk 0:00:32]}  Qe7 {[%clk 0:00:03]} 32. Qe3 {[%clk 0:00:31]}  Rd8 {[%clk 0:00:04]} 33. Qxh6+ {[%clk 0:00:29]}  Qg7 {[%clk 0:00:03]} 34. Qe3 {[%clk 0:00:29]}  Qe7 {[%clk 0:00:02]} 35. Rd2 {[%clk 0:00:22]}  Kg7 {[%clk 0:00:02]} 36. Bb3 {[%clk 0:00:21]}  Rxd2 {[%clk 0:00:02]} 37. Qxd2 {[%clk 0:00:21]}  Kf8 {[%clk 0:00:01]} 38. Qh6+ {[%clk 0:00:21]}  Qg7 {[%clk 0:00:02]} 39. Qe3 {[%clk 0:00:22]}  Qe7 {[%clk 0:00:01]} 40. Qxa7 {[%clk 0:00:22]}  Qb4 {[%clk 0:00:02]} 41. Qb8+ {[%clk 0:00:21]}  Kg7 {[%clk 0:00:02]} 42. Qxe5 {[%clk 0:00:21]}  Qg4 {[%clk 0:00:01]} 43. Nd5 {[%clk 0:00:19]}  Kg6 {[%clk 0:00:01]} 44. Qxf6+ {[%clk 0:00:19]} 1-0


[Site "https://www.chess.com"]

[Event "Titled Tuesday Blitz June 28 Late 2022"]
[White "Mendez Fortes, Eduardo Jesus"]
[Black "Adla, Diego"]
[WhiteFideId "3502376"]
[BlackFideId "100072"]
[WhiteElo "2321"]
[BlackElo "2377"]
[Result "0-1"]
[Round "05"]
[TimeControl "180+1"]
[Date "2022.06.29"]
[WhiteClock "0:01:22"]
[BlackClock "0:00:09"]

1. e4 {[%clk 0:02:56]}  e5 {[%clk 0:02:59]} 2. Nf3 {[%clk 0:02:55]}  Nc6 {[%clk 0:02:58]} 3. Bb5 {[%clk 0:02:56]}  a6 {[%clk 0:02:58]} 4. Ba4 {[%clk 0:02:56]}  Nf6 {[%clk 0:02:58]} 5. O-O {[%clk 0:02:56]}  Bc5 {[%clk 0:02:58]} 6. c3 {[%clk 0:02:53]}  b5 {[%clk 0:02:58]} 7. Bb3 {[%clk 0:02:53]}  d6 {[%clk 0:02:59]} 8. a4 {[%clk 0:02:52]}  Bg4 {[%clk 0:02:57]} 9. h3 {[%clk 0:02:50]}  Bxf3 {[%clk 0:02:56]} 10. Qxf3 {[%clk 0:02:49]}  b4 {[%clk 0:02:51]} 11. d3 {[%clk 0:02:48]}  h6 {[%clk 0:02:51]} 12. a5 {[%clk 0:02:45]}  O-O {[%clk 0:02:50]} 13. Be3 {[%clk 0:02:41]}  Bxe3 {[%clk 0:02:46]} 14. fxe3 {[%clk 0:02:41]}  Rb8 {[%clk 0:02:44]} 15. Nd2 {[%clk 0:02:40]}  bxc3 {[%clk 0:02:33]} 16. bxc3 {[%clk 0:02:41]}  Na7 {[%clk 0:02:33]} 17. Bc4 {[%clk 0:02:35]}  Nb5 {[%clk 0:02:32]} 18. Bxb5 {[%clk 0:02:34]}  Rxb5 {[%clk 0:02:31]} 19. c4 {[%clk 0:02:35]}  Rb2 {[%clk 0:02:27]} 20. Rf2 {[%clk 0:02:33]}  Nd7 {[%clk 0:01:59]} 21. Raf1 {[%clk 0:02:27]}  Nc5 {[%clk 0:01:54]} 22. d4 {[%clk 0:02:26]}  Ne6 {[%clk 0:01:53]} 23. d5 {[%clk 0:02:24]}  Nc5 {[%clk 0:01:51]} 24. Qh5 {[%clk 0:02:21]}  Rxd2 {[%clk 0:01:27]} 25. Rxd2 {[%clk 0:02:17]}  Nxe4 {[%clk 0:01:27]} 26. Rb2 {[%clk 0:02:17]}  Ng3 {[%clk 0:01:27]} 27. Qf3 {[%clk 0:02:12]}  Nxf1 {[%clk 0:01:27]} 28. Qxf1 {[%clk 0:02:13]}  Qg5 {[%clk 0:01:18]} 29. Qd3 {[%clk 0:02:09]}  f5 {[%clk 0:01:09]} 30. Rf2 {[%clk 0:02:08]}  f4 {[%clk 0:00:51]} 31. e4 {[%clk 0:02:07]}  Rb8 {[%clk 0:00:45]} 32. c5 {[%clk 0:01:58]}  Rb5 {[%clk 0:00:30]} 33. c6 {[%clk 0:01:39]}  Rxa5 {[%clk 0:00:27]} 34. Rb2 {[%clk 0:01:32]}  Ra1+ {[%clk 0:00:24]} 35. Kh2 {[%clk 0:01:32]}  Qh4 {[%clk 0:00:10]} 36. Qe2 {[%clk 0:01:22]}  Qg3# {[%clk 0:00:09]} 0-1


[Site "https://www.chess.com"]

[Event "Titled Tuesday Blitz June 28 Late 2022"]
[White "Meunier-Pion, Jean"]
[Black "Salem, A.R. Saleh"]
[WhiteFideId "20685327"]
[BlackFideId "9301348"]
[WhiteElo "2124"]
[BlackElo "2679"]
[Result "0-1"]
[Round "05"]
[TimeControl "180+1"]
[Date "2022.06.28"]
[WhiteClock "0:00:01"]
[BlackClock "0:01:58"]

1. e4 {[%clk 0:03:00]}  c5 {[%clk 0:03:00]} 2. Nf3 {[%clk 0:03:00]}  d6 {[%clk 0:03:00]} 3. d4 {[%clk 0:03:01]}  cxd4 {[%clk 0:03:01]} 4. Nxd4 {[%clk 0:03:02]}  Nf6 {[%clk 0:03:02]} 5. Nc3 {[%clk 0:03:02]}  a6 {[%clk 0:03:03]} 6. h3 {[%clk 0:03:03]}  e6 {[%clk 0:03:03]} 7. g4 {[%clk 0:03:03]}  Be7 {[%clk 0:03:04]} 8. Bg2 {[%clk 0:03:03]}  O-O {[%clk 0:03:04]} 9. g5 {[%clk 0:03:01]}  Nfd7 {[%clk 0:03:04]} 10. h4 {[%clk 0:03:00]}  b5 {[%clk 0:03:04]} 11. Be3 {[%clk 0:02:57]}  b4 {[%clk 0:03:03]} 12. Na4 {[%clk 0:02:45]}  Bb7 {[%clk 0:03:04]} 13. g6 {[%clk 0:02:35]}  hxg6 {[%clk 0:03:01]} 14. h5 {[%clk 0:02:35]}  g5 {[%clk 0:03:02]} 15. h6 {[%clk 0:02:35]}  g6 {[%clk 0:03:01]} 16. Qd2 {[%clk 0:01:21]}  Qa5 {[%clk 0:03:01]} 17. b3 {[%clk 0:01:19]}  Nc6 {[%clk 0:02:58]} 18. Rd1 {[%clk 0:00:46]}  Nde5 {[%clk 0:02:57]} 19. f4 {[%clk 0:00:41]}  gxf4 {[%clk 0:02:57]} 20. Bxf4 {[%clk 0:00:41]}  Nxd4 {[%clk 0:02:57]} 21. Qxd4 {[%clk 0:00:41]}  Rac8 {[%clk 0:02:38]} 22. Rd2 {[%clk 0:00:38]}  Rfd8 {[%clk 0:02:31]} 23. h7+ {[%clk 0:00:35]}  Kh8 {[%clk 0:02:29]} 24. Rh3 {[%clk 0:00:21]}  Bf6 {[%clk 0:02:28]} 25. Qf2 {[%clk 0:00:20]}  Rd7 {[%clk 0:02:14]} 26. Qg3 {[%clk 0:00:19]}  Qd8 {[%clk 0:02:13]} 27. Be3 {[%clk 0:00:19]}  Rc6 {[%clk 0:02:06]} 28. Qf4 {[%clk 0:00:17]}  Bg7 {[%clk 0:02:05]} 29. Bg1 {[%clk 0:00:08]}  a5 {[%clk 0:02:04]} 30. c4 {[%clk 0:00:08]}  bxc3 {[%clk 0:02:03]} 31. Nxc3 {[%clk 0:00:08]}  Ba6 {[%clk 0:02:03]} 32. Bd4 {[%clk 0:00:03]}  g5 {[%clk 0:02:02]} 33. Qh2 {[%clk 0:00:02]}  Qf6 {[%clk 0:01:58]} 34. Rf2 {[%clk 0:00:01]}  Qg6 {[%clk 0:01:58]} 35. Bf3 {[%clk 0:00:01]}  Nd3+ {[%clk 0:01:58]} 0-1


[Site "https://www.chess.com"]

[Event "Titled Tuesday Blitz June 28 Late 2022"]
[White "Mickiewicz, Piotr"]
[Black "Katz, Alexander"]
[WhiteFideId "1114891"]
[BlackFideId "2039796"]
[WhiteElo "2209"]
[BlackElo "2371"]
[Result "0-1"]
[Round "05"]
[TimeControl "180+1"]
[Date "2022.06.28"]
[WhiteClock "0:00:17"]
[BlackClock "0:01:11"]

1. e4 {[%clk 0:03:00]}  e5 {[%clk 0:02:28]} 2. Nf3 {[%clk 0:03:00]}  Nc6 {[%clk 0:02:29]} 3. Bb5 {[%clk 0:03:00]}  a6 {[%clk 0:02:29]} 4. Ba4 {[%clk 0:03:00]}  Nge7 {[%clk 0:02:29]} 5. c3 {[%clk 0:02:59]}  d6 {[%clk 0:02:29]} 6. O-O {[%clk 0:02:59]}  Bd7 {[%clk 0:02:29]} 7. d4 {[%clk 0:02:59]}  Ng6 {[%clk 0:02:29]} 8. d5 {[%clk 0:02:52]}  Nb8 {[%clk 0:02:26]} 9. c4 {[%clk 0:02:52]}  Be7 {[%clk 0:02:26]} 10. Nc3 {[%clk 0:02:50]}  O-O {[%clk 0:02:26]} 11. h3 {[%clk 0:02:48]}  f5 {[%clk 0:02:17]} 12. Bxd7 {[%clk 0:02:45]}  Nxd7 {[%clk 0:02:18]} 13. exf5 {[%clk 0:02:44]}  Rxf5 {[%clk 0:02:18]} 14. Nd2 {[%clk 0:02:43]}  Qf8 {[%clk 0:02:16]} 15. Nde4 {[%clk 0:02:42]}  Nf4 {[%clk 0:02:14]} 16. Be3 {[%clk 0:02:37]}  Qf7 {[%clk 0:02:13]} 17. Ng3 {[%clk 0:02:27]}  Rg5 {[%clk 0:02:10]} 18. Nce4 {[%clk 0:02:26]}  Rg6 {[%clk 0:02:10]} 19. Rc1 {[%clk 0:01:52]}  Rf8 {[%clk 0:02:09]} 20. b4 {[%clk 0:01:50]}  h5 {[%clk 0:02:05]} 21. Bxf4 {[%clk 0:01:38]}  exf4 {[%clk 0:02:02]} 22. Qxh5 {[%clk 0:00:57]}  fxg3 {[%clk 0:01:54]} 23. fxg3 {[%clk 0:00:58]}  Qe8 {[%clk 0:01:54]} 24. Rxf8+ {[%clk 0:00:49]}  Nxf8 {[%clk 0:01:55]} 25. Rf1 {[%clk 0:00:46]}  Bd8 {[%clk 0:01:50]} 26. Rf4 {[%clk 0:00:26]}  Nd7 {[%clk 0:01:45]} 27. c5 {[%clk 0:00:18]}  Nf6 {[%clk 0:01:37]} 28. Nxf6+ {[%clk 0:00:17]}  Bxf6 {[%clk 0:01:29]} 29. Kh2 {[%clk 0:00:17]}  Qf7 {[%clk 0:01:15]} 30. a4 {[%clk 0:00:16]}  Rg5 {[%clk 0:01:13]} 31. Qxg5 {[%clk 0:00:12]}  Bxg5 {[%clk 0:01:13]} 32. Rxf7 {[%clk 0:00:13]}  Kxf7 {[%clk 0:01:13]} 33. cxd6 {[%clk 0:00:14]}  cxd6 {[%clk 0:01:13]} 34. b5 {[%clk 0:00:14]}  axb5 {[%clk 0:01:13]} 35. axb5 {[%clk 0:00:15]}  Kf6 {[%clk 0:01:13]} 36. h4 {[%clk 0:00:16]}  Be3 {[%clk 0:01:13]} 37. g4 {[%clk 0:00:16]}  Ke5 {[%clk 0:01:13]} 38. g5 {[%clk 0:00:16]}  Kxd5 {[%clk 0:01:14]} 39. Kg3 {[%clk 0:00:17]}  g6 {[%clk 0:01:13]} 40. Kf3 {[%clk 0:00:17]}  Bc1 {[%clk 0:01:12]} 41. g4 {[%clk 0:00:18]}  Ke5 {[%clk 0:01:12]} 42. h5 {[%clk 0:00:17]}  gxh5 {[%clk 0:01:11]} 43. gxh5 {[%clk 0:00:17]}  Bxg5 {[%clk 0:01:11]} 44. Ke2 {[%clk 0:00:17]}  Kd4 {[%clk 0:01:11]} 0-1


[Site "https://www.chess.com"]

[Event "Titled Tuesday Blitz June 28 Late 2022"]
[White "Mirzoev, Azer"]
[Black "Yeshchenko, Uliana"]
[WhiteFideId "13400304"]
[BlackFideId "14187272"]
[WhiteElo "2525"]
[BlackElo "1890"]
[Result "1-0"]
[Round "05"]
[TimeControl "180+1"]
[Date "2022.06.29"]
[WhiteClock "0:01:07"]
[BlackClock "0:00:51"]

1. e4 {[%clk 0:02:57]}  c6 {[%clk 0:02:55]} 2. Nc3 {[%clk 0:02:56]}  d5 {[%clk 0:02:55]} 3. Nf3 {[%clk 0:02:56]}  dxe4 {[%clk 0:02:55]} 4. Nxe4 {[%clk 0:02:56]}  Nf6 {[%clk 0:02:56]} 5. Qe2 {[%clk 0:02:52]}  Nxe4 {[%clk 0:02:56]} 6. Qxe4 {[%clk 0:02:52]}  Qa5 {[%clk 0:02:55]} 7. Bc4 {[%clk 0:02:48]}  Bf5 {[%clk 0:02:54]} 8. Qe5 {[%clk 0:02:27]}  Qxe5+ {[%clk 0:02:50]} 9. Nxe5 {[%clk 0:02:27]}  e6 {[%clk 0:02:50]} 10. d3 {[%clk 0:02:26]}  Nd7 {[%clk 0:02:49]} 11. Nf3 {[%clk 0:02:24]}  h6 {[%clk 0:02:47]} 12. Bd2 {[%clk 0:02:22]}  Bc5 {[%clk 0:02:43]} 13. a3 {[%clk 0:02:22]}  b5 {[%clk 0:02:41]} 14. Ba2 {[%clk 0:02:21]}  a5 {[%clk 0:02:40]} 15. Be3 {[%clk 0:02:18]}  O-O-O {[%clk 0:02:38]} 16. Ke2 {[%clk 0:02:12]}  Kb7 {[%clk 0:02:37]} 17. h3 {[%clk 0:02:12]}  Rhe8 {[%clk 0:02:29]} 18. Rhe1 {[%clk 0:02:01]}  f6 {[%clk 0:02:25]} 19. Kf1 {[%clk 0:01:59]}  e5 {[%clk 0:02:24]} 20. Nh4 {[%clk 0:01:54]}  Be6 {[%clk 0:02:21]} 21. Bxe6 {[%clk 0:01:52]}  Rxe6 {[%clk 0:02:22]} 22. Nf5 {[%clk 0:01:52]}  Rg8 {[%clk 0:02:18]} 23. h4 {[%clk 0:01:52]}  h5 {[%clk 0:02:06]} 24. Ng3 {[%clk 0:01:49]}  g6 {[%clk 0:02:04]} 25. Ne4 {[%clk 0:01:49]}  Bxe3 {[%clk 0:02:02]} 26. fxe3 {[%clk 0:01:47]}  g5 {[%clk 0:01:58]} 27. hxg5 {[%clk 0:01:45]}  fxg5 {[%clk 0:01:59]} 28. Kg1 {[%clk 0:01:45]}  Kb6 {[%clk 0:01:51]} 29. Rf1 {[%clk 0:01:42]}  Nc5 {[%clk 0:01:46]} 30. Nf6 {[%clk 0:01:41]}  Rh8 {[%clk 0:01:42]} 31. Rf5 {[%clk 0:01:40]}  Rh6 {[%clk 0:01:36]} 32. Raf1 {[%clk 0:01:40]}  b4 {[%clk 0:01:34]} 33. axb4 {[%clk 0:01:38]}  axb4 {[%clk 0:01:35]} 34. b3 {[%clk 0:01:39]}  Na6 {[%clk 0:01:24]} 35. Nd7+ {[%clk 0:01:36]}  Kc7 {[%clk 0:01:17]} 36. Nxe5 {[%clk 0:01:37]}  g4 {[%clk 0:01:15]} 37. e4 {[%clk 0:01:33]}  Kb6 {[%clk 0:01:07]} 38. Kh2 {[%clk 0:01:31]}  Nc5 {[%clk 0:01:05]} 39. Nc4+ {[%clk 0:01:28]}  Kb5 {[%clk 0:00:55]} 40. d4 {[%clk 0:01:27]}  Rxe4 {[%clk 0:00:55]} 41. Rxc5+ {[%clk 0:01:26]}  Ka6 {[%clk 0:00:56]} 42. Ra1+ {[%clk 0:01:24]}  Kb7 {[%clk 0:00:56]} 43. d5 {[%clk 0:01:13]}  cxd5 {[%clk 0:00:51]} 44. Rxd5 {[%clk 0:01:13]}  h4 {[%clk 0:00:51]} 45. Nd6+ {[%clk 0:01:08]}  Rxd6 {[%clk 0:00:50]} 46. Rxd6 {[%clk 0:01:07]}  g3+ {[%clk 0:00:51]} 47. Kh3 {[%clk 0:01:07]} 1-0


[Site "https://www.chess.com"]

[Event "Titled Tuesday Blitz June 28 Late 2022"]
[White "Nikologorsky, Matfei"]
[Black "Voege, Tobias"]
[WhiteFideId "24102474"]
[BlackFideId "1270513"]
[WhiteElo "2231"]
[BlackElo "2379"]
[Result "1-0"]
[Round "05"]
[TimeControl "180+1"]
[Date "2022.06.29"]
[WhiteClock "0:00:15"]
[BlackClock "0:00:19"]

1. e4 {[%clk 0:03:00]}  e6 {[%clk 0:02:58]} 2. d4 {[%clk 0:03:00]}  d5 {[%clk 0:02:58]} 3. Nd2 {[%clk 0:03:00]}  c5 {[%clk 0:02:54]} 4. Ngf3 {[%clk 0:02:59]}  Nc6 {[%clk 0:02:51]} 5. exd5 {[%clk 0:02:59]}  exd5 {[%clk 0:02:51]} 6. Bb5 {[%clk 0:02:58]}  Nf6 {[%clk 0:02:51]} 7. O-O {[%clk 0:02:57]}  Be6 {[%clk 0:02:50]} 8. Qe2 {[%clk 0:02:46]}  h6 {[%clk 0:02:44]} 9. Ne5 {[%clk 0:02:11]}  Qc8 {[%clk 0:02:25]} 10. Ndf3 {[%clk 0:02:00]}  Be7 {[%clk 0:02:20]} 11. dxc5 {[%clk 0:01:59]}  O-O {[%clk 0:02:17]} 12. Bxc6 {[%clk 0:01:50]}  bxc6 {[%clk 0:02:18]} 13. b4 {[%clk 0:01:51]}  a5 {[%clk 0:02:08]} 14. c3 {[%clk 0:01:49]}  Ne4 {[%clk 0:02:08]} 15. Bd2 {[%clk 0:01:14]}  Bf6 {[%clk 0:01:55]} 16. a3 {[%clk 0:01:01]}  Re8 {[%clk 0:01:49]} 17. Qd3 {[%clk 0:00:52]}  Bf5 {[%clk 0:01:47]} 18. Bf4 {[%clk 0:00:27]}  Ng3 {[%clk 0:01:29]} 19. Qd2 {[%clk 0:00:24]}  Nxf1 {[%clk 0:01:28]} 20. Rxf1 {[%clk 0:00:25]}  axb4 {[%clk 0:01:27]} 21. axb4 {[%clk 0:00:23]}  Be4 {[%clk 0:01:27]} 22. Bg3 {[%clk 0:00:21]}  Ra3 {[%clk 0:01:01]} 23. c4 {[%clk 0:00:20]}  dxc4 {[%clk 0:00:54]} 24. Nxc4 {[%clk 0:00:21]}  Rd3 {[%clk 0:00:52]} 25. Qf4 {[%clk 0:00:20]}  Bxf3 {[%clk 0:00:50]} 26. gxf3 {[%clk 0:00:21]}  Rd4 {[%clk 0:00:48]} 27. Nd6 {[%clk 0:00:20]}  Rxf4 {[%clk 0:00:47]} 28. Nxc8 {[%clk 0:00:20]}  Rxb4 {[%clk 0:00:46]} 29. Nd6 {[%clk 0:00:20]}  Re2 {[%clk 0:00:44]} 30. Ne4 {[%clk 0:00:20]}  Reb2 {[%clk 0:00:39]} 31. Rd1 {[%clk 0:00:20]}  Rb1 {[%clk 0:00:39]} 32. Rxb1 {[%clk 0:00:21]}  Rxb1+ {[%clk 0:00:40]} 33. Kg2 {[%clk 0:00:22]}  Rc1 {[%clk 0:00:38]} 34. Kh3 {[%clk 0:00:20]}  Rc2 {[%clk 0:00:36]} 35. Kg4 {[%clk 0:00:19]}  Bd4 {[%clk 0:00:36]} 36. Bd6 {[%clk 0:00:18]}  Bxf2 {[%clk 0:00:35]} 37. h4 {[%clk 0:00:18]}  Bd4 {[%clk 0:00:33]} 38. h5 {[%clk 0:00:19]}  Kh7 {[%clk 0:00:29]} 39. Kf5 {[%clk 0:00:19]}  Rc1 {[%clk 0:00:26]} 40. Be7 {[%clk 0:00:18]}  Rf1 {[%clk 0:00:24]} 41. Kg4 {[%clk 0:00:16]}  g6 {[%clk 0:00:22]} 42. hxg6+ {[%clk 0:00:16]}  Kxg6 {[%clk 0:00:23]} 43. Bd6 {[%clk 0:00:15]}  Be3 {[%clk 0:00:20]} 44. Ng3 {[%clk 0:00:15]}  Rd1 {[%clk 0:00:17]} 45. f4 {[%clk 0:00:13]}  Rd4 {[%clk 0:00:16]} 46. Kf3 {[%clk 0:00:13]}  Bc1 {[%clk 0:00:16]} 47. f5+ {[%clk 0:00:13]}  Kh7 {[%clk 0:00:16]} 48. Ne4 {[%clk 0:00:13]}  Rd5 {[%clk 0:00:17]} 49. Nf6+ {[%clk 0:00:13]}  Kg7 {[%clk 0:00:17]} 50. Nxd5 {[%clk 0:00:14]}  f6 {[%clk 0:00:15]} 51. Ne7 {[%clk 0:00:13]}  Ba3 {[%clk 0:00:15]} 52. Nxc6 {[%clk 0:00:13]}  h5 {[%clk 0:00:15]} 53. Nd4 {[%clk 0:00:14]}  h4 {[%clk 0:00:14]} 54. Ne6+ {[%clk 0:00:14]}  Kf7 {[%clk 0:00:14]} 55. Kg4 {[%clk 0:00:15]}  Ke8 {[%clk 0:00:14]} 56. Kxh4 {[%clk 0:00:15]}  Kd7 {[%clk 0:00:15]} 57. Kh5 {[%clk 0:00:15]}  Bb2 {[%clk 0:00:15]} 58. Kg6 {[%clk 0:00:16]}  Kc6 {[%clk 0:00:15]} 59. Be7 {[%clk 0:00:13]}  Kd5 {[%clk 0:00:16]} 60. Bxf6 {[%clk 0:00:13]}  Ba3 {[%clk 0:00:16]} 61. Be7 {[%clk 0:00:13]}  Bb2 {[%clk 0:00:17]} 62. Bd6 {[%clk 0:00:13]}  Kc6 {[%clk 0:00:17]} 63. Ng7 {[%clk 0:00:13]}  Kd7 {[%clk 0:00:17]} 64. f6 {[%clk 0:00:14]}  Bxf6 {[%clk 0:00:16]} 65. Kxf6 {[%clk 0:00:15]}  Kc6 {[%clk 0:00:17]} 66. Ke6 {[%clk 0:00:14]}  Kb7 {[%clk 0:00:18]} 67. Kd7 {[%clk 0:00:15]}  Ka7 {[%clk 0:00:18]} 68. c6 {[%clk 0:00:15]}  Kb6 {[%clk 0:00:18]} 69. c7 {[%clk 0:00:16]}  Kb5 {[%clk 0:00:18]} 70. c8=Q {[%clk 0:00:16]}  Ka4 {[%clk 0:00:19]} 71. Qb7 {[%clk 0:00:15]}  Ka5 {[%clk 0:00:19]} 72. Ne6 {[%clk 0:00:14]}  Ka4 {[%clk 0:00:19]} 73. Qb4# {[%clk 0:00:15]} 1-0


[Site "https://www.chess.com"]